Cogmind - Beta 10.2 @@@ ROGUE MODE // 2021.11.26 @ 20:41:16 Player: BigP Result: Destroyed by Y-45 Defender with Beam Rifle Performance ------------- Evolutions (2) 1000 Regions Visited (5) 1000 Robots Destroyed (21) 105 Value Destroyed (510) 510 Prototype IDs (2) 40 Alien Tech Used (0) 0 Bonus (85) 85 TOTAL SCORE: 2740 Bonus ------- Follower Combat Kills 85 Cogmind --------- Core Integrity 0/550 Matter 111/300 Energy 100/100 System Corruption 0% Temperature Cool (9) Movement Flying (35) Location -8/Storage Parts ------- > --- POWER (1) -------- (None) > --- PROPULSION (3) --- Improved Flight Unit > --- UTILITY (5) ------ (None) > --- WEAPON (2) ------- (None) > --- INVENTORY (4) ---- Aerolev Unit Aerolev Unit Aerolev Unit Hardened Medium Armor Plating Peak State ------------ > --- POWER ------------ (None) > --- PROPULSION ------- Aerolev Unit Aerolev Unit Aerolev Unit > --- UTILITY ---------- Hardlight Generator > --- WEAPON ----------- (None) > --- INVENTORY -------- Light Treads [Rating: 15] Favorites ----------- Power Ion Engine Engine Ion Engine Propulsion Improved Treads Treads Improved Treads Wheel Compact Wheel Hover Unit Improved Hover Unit Flight Unit Improved Flight Unit Utility Medium Storage Unit Device Heat Sink Storage Medium Storage Unit Weapon Spread Laser Energy Gun Spread Laser Ballistic Gun Light Assault Rifle Build | -11 -10 -10 -9 -8 -8 ------- Run | Scr Mat Min Mat Mat Sto Slots Evolved 4 | . . . 2 2 . Power . | . . . . . . Propulsion 1 | . . . . 1 . Utility 3 | . . . 2 1 . Weapon . | . . . . . . Parts Attached 58 | 6 8 3 18 9 14 Power 4 | 1 . 1 2 . . Engine 4 | 1 . 1 2 . . Core . | . . . . . . Reactor . | . . . . . . Propulsion 27 | 2 2 . 4 6 13 Treads 11 | . 2 . 3 6 . Leg . | . . . . . . Wheel 2 | 2 . . . . . Hover 5 | . . . 1 . 4 Flight 9 | . . . . . 9 Utility 16 | 1 4 . 7 3 1 Device 13 | . 3 . 6 3 1 Storage 3 | 1 1 . 1 . . Processor . | . . . . . . Hackware . | . . . . . . Protection . | . . . . . . Artifact . | . . . . . . Weapon 11 | 2 2 2 5 . . Energy Gun 7 | . 2 2 3 . . Energy Cannon . | . . . . . . Ballistic Gun 4 | 2 . . 2 . . Ballistic Cannon . | . . . . . . Launcher . | . . . . . . Special Weapon . | . . . . . . Impact Weapon . | . . . . . . Slashing Weapon . | . . . . . . Piercing Weapon . | . . . . . . Special Melee Weapon . | . . . . . . Unidentified Prototypes 2 | . . . . . 2 Parts Lost 18 | . . 2 10 3 3 Power 1 | . . . 1 . . Propulsion 6 | . . . 4 . 2 Utility 4 | . . . . 3 1 Weapon 7 | . . 2 5 . . Highest Loss Streak 9 | . . 2 9 3 2 Average Slot Usage (%) 85 | . 94 99 89 34 27 Engine 10 | . 14 14 9 . . Treads 21 | . 26 27 18 2 . Flight 2 | . . . . . 20 Device 14 | . 10 14 21 26 5 Storage 12 | . 14 14 18 . . Energy Gun 20 | . 25 28 18 . . Naked Turns 35 | . . . 15 14 6 Heaviest Build 29 | 11 20 20 29 1 5 Greatest Support 60 | 32 46 46 46 60 18 Greatest Overweight (x) 3 | . 3 . 1 . 1 Average Overweight (x) . | . . . . . . Largest Inventory Capacity 12 | 6 8 8 12 4 4 Average Capacity 7 | 5 6 8 10 4 4 Most Carried 7 | 2 6 7 7 4 4 Average Carried 5 | . 5 5 4 2 3 Final Capacity 8 | 6 8 8 4 4 4 Final Carried 7 | . 6 7 1 2 4 Class Distribution -------------------- 100% | Mutant Dominant Class ---------------- Mutant | -10/Materials Mutant | -10/Mines Mutant | -9/Materials Mutant | -8/Materials Mutant | -8/Storage Resources | -11 -10 -10 -9 -8 -8 ----------- Run | Scr Mat Min Mat Mat Sto Matter Collected 523 | 202 128 30 75 . 88 Remotely . | . . . . . . Salvage Created 660 | . 225 194 241 . . Parts 36 | . 10 16 10 . . Haulers Intercepted 1 | . 1 . . . . Recyclers Shooed 1 | . . 1 . . . Parts Field Recycled . | . . . . . . Retrieved Matter . | . . . . . . Parts Self-Destructed . | . . . . . . Prevented . | . . . . . . Kills | -11 -10 -10 -9 -8 -8 ------- Run | Scr Mat Min Mat Mat Sto Combat Hostiles Destroyed 12 | . 3 2 7 . . Guns 11 | . 3 2 6 . . AOE 1 | . . . 1 . . Classes Destroyed 7 | . 5 1 1 . . Worker 2 | . 1 1 . . . Builder 3 | . 1 2 . . . Tunneler 1 | . . 1 . . . Hauler 1 | . 1 . . . . Recycler 2 | . 1 1 . . . Grunt 11 | . 3 2 6 . . Brawler 1 | . . . 1 . . Best Kill Streak 4 | . 4 4 2 . . Combat Bots Only 2 | . 1 2 2 . . Max Kills in Single Turn 1 | . 1 1 1 . . Gunslinging . | . . . . . . Exploded 1 | . . . 1 . . Melee . | . . . . . . Uniques/NPCs Destroyed . | . . . . . . Combat | -11 -10 -10 -9 -8 -8 -------- Run | Scr Mat Min Mat Mat Sto Damage Taken 2656 | . 217 145 1321 571 402 Core 819 | . 21 . 245 293 260 Absorbed by Shields . | . . . . . . Core Remaining (%) 76 | 100 . 91 38 . . Volleys Fired 52 | . 15 17 20 . . Largest 2 | . 2 2 2 . . Hottest 130 | . 130 130 130 . . Shots Fired 96 | . 30 32 34 . . Gun 96 | . 30 32 34 . . Cannon . | . . . . . . Launcher . | . . . . . . Special . | . . . . . . Kinetic 6 | . . . 6 . . Thermal 84 | . 30 32 22 . . Explosive . | . . . . . . Electromagnetic 6 | . . . 6 . . Robot Hit Streak 13 | . 11 13 10 . . Robot Miss Streak 8 | . 8 7 4 . . Penetration Max . | . . . . . . Secondary Targets 1 | . . . 1 . . Max Gunslinging Chain 1 | . . . 1 . . Shots Hit Robots 87 | . 27 28 32 . . Core Hits 94 | . 33 32 29 . . Critical Hits . | . . . . . . Critical Kills . | . . . . . . Critical Parts Destroyed . | . . . . . . Melee Attacks . | . . . . . . Impact . | . . . . . . Slashing . | . . . . . . Piercing . | . . . . . . Sneak Attacks . | . . . . . . Combat Hostiles . | . . . . . . Follow-up Attacks . | . . . . . . Damage Inflicted 1182 | . 338 344 500 . . Guns 1064 | . 338 344 382 . . Cannons . | . . . . . . Explosions 114 | . . . 114 . . Melee . | . . . . . . Ramming 4 | . . . 4 . . Kinetic 53 | . . . 53 . . Thermal 924 | . 338 344 242 . . Explosive 114 | . . . 114 . . Electromagnetic 87 | . . . 87 . . Impact . | . . . . . . Slashing . | . . . . . . Piercing . | . . . . . . Highest Corruption 1 | . . . 1 . . Average Corruption 1 | . . . 1 . . Corruption Purged . | . . . . . . Effects 1 | . . . 1 . . Targeting Errors 1 | . . . 1 . . Overload Shots . | . . . . . . Overflow Damage 25 | . . . 25 . . Projectiles . | . . . . . . Explosions 25 | . . . 25 . . Melee . | . . . . . . Knockbacks . | . . . . . . Impact . | . . . . . . Kinetic . | . . . . . . Secondary . | . . . . . . Self-Inflicted Damage 114 | . . . 114 . . Shots 1 | . . . 1 . . Rammed 1 | . . . 1 . . Targets Rammed 1 | . . . 1 . . Kicked . | . . . . . . Crushed . | . . . . . . Highest Temperature 209 | . 156 209 108 . . Average Temperature 60 | . 64 64 47 . . Received Heat Transfer 1146 | . 123 87 504 288 144 Siege Activations . | . . . . . . Robots Corrupted . | . . . . . . Combat Hostiles . | . . . . . . Parts Fried . | . . . . . . Impact Corruptions . | . . . . . . Robots Melted . | . . . . . . Combat Hostiles . | . . . . . . Parts Melted 1 | . 1 . . . . Heat Transferred 1200 | . 415 420 365 . . Parts Sabotaged . | . . . . . . Parts Stolen . | . . . . . . Parts Stripped . | . . . . . . Power Chain Reactions . | . . . . . . Missiles Intercepted . | . . . . . . Alert | -11 -10 -10 -9 -8 -8 ------- Run | Scr Mat Min Mat Mat Sto Peak Influence 162 | . 122 147 162 82 106 Initial 47 | . . 47 . 22 27 Average 43 | . 62 48 27 41 40 Maximum Alert Level . | . . . . . . Low Security (%) 100 | 100 100 100 100 100 100 Level 1 . | . . . . . . Level 2 . | . . . . . . Level 3 . | . . . . . . Level 4 . | . . . . . . Level 5 . | . . . . . . High Security . | . . . . . . Max Security . | . . . . . . Squads Dispatched 6 | . 2 . 3 1 . Investigation 1 | . . . 1 . . Extermination . | . . . . . . Reinforcement 5 | . 2 . 2 1 . Assault . | . . . . . . Garrison . | . . . . . . Intercept . | . . . . . . Construction Impeded . | . . . . . . Haulers Reinforced . | . . . . . . Stealth | -11 -10 -10 -9 -8 -8 --------- Run | Scr Mat Min Mat Mat Sto Distress Signals 4 | . 1 . 1 2 . Communications Jammed . | . . . . . . Distress Signals . | . . . . . . Times Spotted 66 | . 14 5 17 14 16 Peak Tracking Total 12 | . 6 2 6 10 12 Tactical Retreats 6 | . 1 1 1 1 2 Traps | -11 -10 -10 -9 -8 -8 ------- Run | Scr Mat Min Mat Mat Sto Traps Triggered 1 | . . . . . 1 Indirectly . | . . . . . . Trap Hack Attempts . | . . . . . . Triggered . | . . . . . . Disarmed . | . . . . . . Reprogrammed . | . . . . . . Reused . | . . . . . . Traps Extracted . | . . . . . . Installed . | . . . . . . Triggered . | . . . . . . Machines | -11 -10 -10 -9 -8 -8 ---------- Run | Scr Mat Min Mat Mat Sto Machines Disabled 1 | . . . 1 . . Max in Single Turn 1 | . . . 1 . . Machines Sabotaged . | . . . . . . Garrisons Compromised . | . . . . . . Overloaded Fab Kills . | . . . . . . Fab Network Shutdowns . | . . . . . . Hacking | -11 -10 -10 -9 -8 -8 --------- Run | Scr Mat Min Mat Mat Sto Machines Accessed 3 | . . . . . 3 Terminals 3 | . . . . . 3 Fabricators . | . . . . . . Repair Stations . | . . . . . . Recycling Units . | . . . . . . Scanalyzers . | . . . . . . Garrison Access . | . . . . . . Total Hacks 8 | . . . . . 8 Successful 3 | . . . . . 3 Failed 5 | . . . . . 5 Catastrophic . | . . . . . . Database Lockouts . | . . . . . . Manual . | . . . . . . Terminals 8 | . . . . . 8 Fabricators . | . . . . . . Repair Stations . | . . . . . . Recycling Units . | . . . . . . Scanalyzers . | . . . . . . Garrison Access . | . . . . . . Terminal Hacks 3 | . . . . . 3 Open Door 1 | . . . . . 1 Unreport Threat 1 | . . . . . 1 Recall Extermination 1 | . . . . . 1 Fabricator Hacks . | . . . . . . Repair Station Hacks . | . . . . . . Recycling Unit Hacks . | . . . . . . Scanalyzer . | . . . . . . Garrison Access Hacks . | . . . . . . Unauthorized Hacks . | . . . . . . Terminals . | . . . . . . Fabricators . | . . . . . . Repair Stations . | . . . . . . Recycling Units . | . . . . . . Scanalyzers . | . . . . . . Garrison Access . | . . . . . . Data Cores Recovered . | . . . . . . Used . | . . . . . . Hacking Detections 3 | . . . . . 3 Full Trace Events . | . . . . . . Feedback Events . | . . . . . . Feedback Blocked . | . . . . . . Robot Schematics Acquired . | . . . . . . Robots Built . | . . . . . . Matter . | . . . . . . Time . | . . . . . . Total Robot Build Rating . | . . . . . . Part Schematics Acquired . | . . . . . . Parts Built . | . . . . . . Matter . | . . . . . . Time . | . . . . . . Total Part Build Rating . | . . . . . . Parts Repaired . | . . . . . . Time . | . . . . . . Parts Recycled . | . . . . . . Recycled Matter . | . . . . . . Retrieved Matter . | . . . . . . Retrieved Components . | . . . . . . Parts Scanalyzed . | . . . . . . Part Schematics Acquired . | . . . . . . Parts Damaged . | . . . . . . Bothacking | -11 -10 -10 -9 -8 -8 ------------ Run | Scr Mat Min Mat Mat Sto Used RIF Installer . | . . . . . . Robots Hacked . | . . . . . . Non-combat . | . . . . . . Combat . | . . . . . . Robot Hacks Applied . | . . . . . . Relay Couplers Released . | . . . . . . Robots Rewired . | . . . . . . Allies Hacked . | . . . . . . Hacks Repelled . | . . . . . . Allies | -11 -10 -10 -9 -8 -8 -------- Run | Scr Mat Min Mat Mat Sto Total Allies 3 | . . 3 . . . Largest Group 3 | . . 3 2 . . Highest-Rated Group 40 | . . 40 24 . . Highest-Rated Ally 16 | . . 16 16 . . Total Orders 1 | . . 1 . . . GUARD 1 | . . 1 . . . Ally Attacks 15 | . . 13 2 . . Total Damage 170 | . . 154 16 . . Kills 3 | . . 2 1 . . Allies Corrupted . | . . . . . . Allies Melted . | . . . . . . Intel | -11 -10 -10 -9 -8 -8 ------- Run | Scr Mat Min Mat Mat Sto Robot Analysis Total . | . . . . . . Derelict Logs Recovered 2 | . . 2 . . . Drone Launches . | . . . . . . Drone Recoveries . | . . . . . . Exploration | -11 -10 -10 -9 -8 -8 ------------- Run | Scr Mat Min Mat Mat Sto Turns Passed 2069 | 43 333 902 470 105 216 Spaces Moved 1369 | 33 139 495 237 150 315 Core 177 | 3 4 . 24 130 16 Treads 809 | . 131 495 180 3 . Legs . | . . . . . . Wheels 34 | 30 4 . . . . Hover 51 | . . . 33 17 1 Flight 298 | . . . . . 298 Fastest Speed 29 | 50 100 160 50 50 29 Average Speed 114 | 95 159 160 135 53 36 Slowest Speed 200 | 100 200 160 180 163 100 Overloaded Moves . | . . . . . . Propulsion Burnouts . | . . . . . . Robots Hopped 4 | . . . . . 4 Cave-ins Triggered . | . . . . . . Exploration Rate (%) 37 | 3 32 88 27 18 55 Regions Visited 5 Branch Regions 2 Pre-discovered Areas 1 | . . 1 . . . Known Exits Taken . | . . . . . . Unknown Exits Taken 5 | 1 1 1 1 1 . Scrap Searched 1 | . . 1 . . . Spaces Dug . | . . . . . . Terrain Destroyed 30 | . . . 30 . . Melee . | . . . . . . Projectile . | . . . . . . AOE 30 | . . . 30 . . Terrain Rammed . | . . . . . . Walls Destroyed . | . . . . . . Machines Disabled . | . . . . . . Actions | -11 -10 -10 -9 -8 -8 --------- Run | Scr Mat Min Mat Mat Sto Total 1786 | 44 222 574 355 178 413 Wait 229 | . 48 53 59 2 67 Move 1356 | 32 138 494 236 149 307 Hop 4 | . . . . . 4 Pick Up 50 | 6 8 4 11 8 13 Fast Attach 6 | . 1 . . 2 3 Attach 44 | 6 2 2 16 7 11 Detach 3 | . . 1 1 . 1 Swap 8 | . 5 1 2 . . Drop 33 | . 5 2 9 10 7 Fire 52 | . 15 17 20 . . Melee . | . . . . . . Ram 1 | . . . 1 . . Kick . | . . . . . . Crush . | . . . . . . Escape Stasis . | . . . . . . Rewire . | . . . . . . Trap . | . . . . . . Miscellaneous . | . . . . . . Route ------- -11/Scrapyard -10/Materials -10/Mines (discovered 2 exits: [*Mat x2]) -9/Materials -8/Materials -8/Storage History --------- Turn | Location | Event 2 | -11/Scrapyard | Met Revision 17 12 | -11/Scrapyard | Discovered new exit (range 15) 44 | -11/Scrapyard | Entered Materials 312 | -10/Materials | Build established: Mutant 366 | -10/Materials | Discovered new exit (range 8) 377 | -10/Materials | Entered Mines 378 | -10/Mines | Learned location of Storage (-8) 591 | -10/Mines | Discovered new exit (range 13) 635 | -10/Mines | YI-UF0 nonchalantly dropped a Grenade Launcher on the ground 665 | -10/Mines | Assisted by bots powering up and referring to "LRC-V3" 869 | -10/Mines | Learned Materials emergency access door positions 887 | -10/Mines | Discovered new exit (range 5) 1003 | -10/Mines | Learned Materials security intel 1279 | -10/Mines | Entered Materials 1279 | -9/Materials | Accompanied by 2 allies 1279 | -9/Materials | Evolved 2 slots: Utility x2 1708 | -9/Materials | Core integrity fell below 50% 1732 | -9/Materials | Lost 9 parts (1p4n4w) 1745 | -9/Materials | Discovered new exit (range 5) 1749 | -9/Materials | Entered another Materials area 1749 | -8/Materials | Evolved 2 slots: Propulsion x1, Utility x1 1849 | -8/Materials | Discovered new exit (range 11) 1853 | -8/Materials | Core integrity fell below 50% 1854 | -8/Materials | Entered Storage 1871 | -8/Storage | Lost 3 parts (3u) 1998 | -8/Storage | Core integrity fell below 20% 2070 | -8/Storage | Destroyed by Y-45 Defender with Beam Rifle Last Messages --------------- 01935_ Connecting with Terminal... >>Recall(Extermination) Establishing remote squad link... No tasked extermination squads found. [Achievement: Everything Is Under Control] >>Alert(Purge) Purged threat record, alert level lowered. 01964_ Acquired Hrd. Medium Armor Plating. 01971_ Transport Mainframe disabled. 01978_ Acquired 88 matter. 01984_ K-01 Serf cleans the Terminal. 01985_ Hardlight Generator destroyed. 01995_ C-30 ARC bursts open, deploying its payload. 01995_ G-50 Soldier unfolds itself. 02021_ Triggered Blade Trap. 02021_ Massive razor-sharp blades shoot up from within the floor. 02021_ Imp. Flight Unit severed. 02022_ Acquired Imp. Flight Unit. 02030_ U-05 Engineer lays Concrete. 02062_ Imp. Flight Unit destroyed. Map ----- +----------------------------------------------------+ | ??######+############+######??# #??????????????? | | ??????# #??# #??????????????? | | ??????# #### #??????????????? | | ####??# "%" #??????????????? | | ??# ##################### #??????????????? | | """ ?# #?????????####????### #??????????????? | | """ ?# #?????????# ???? # #??????????????? | | """ # #?????????# ????" # #??????????????? | | # #?????????# "????" # ##########?????? | | """ + #?????????# "????" # # #?????? | | """ # #?????????# "????" # # """ #?????? | | """ # ########### "?"""" / + """ #?????? | | ?# ## # """ # # """ #?????? | | ####### ## """ # # # #?????? | | """ # # """ ###/####### # """"" #??###+ | | "Y" # # """ # #????# # """"" #??# | | + # + #????# # """"" #### | | """ # + """ # #????# # + | | """" # # """ # #????# ############# | | """" ####### """ ## ##????# #???????????# | | """" #?????# ## #?????# #???########## | | #?????###"T"##### #?????# #???# # | | #?????#######???# #?????# ##### "T" # | | ## ###???### ######### ####### + # | | ?##???#### # Y #???# + | | ??????#""" """ """ # @ #???# # | | ??????#"R """ """ + ######+####???# """ # | | ??????#""" """ """ # #?????????????# """ # | | ??????#""" """ """ # #?????????????# """ # | | ?????????# """ """ + #?????????????# # | | ?????????# # #?????????????########## | | ?????????#####T#"T"### #??????????????????????# | | ?????????????#######?# #??????????????????????# | | ???????????"########## #??????????????????????### | | ???????????" #????????????????????##### | | ???????????" #????????????????????# | | ???????????"#T##+###########?????????????????#= | | ??????????????# #?????????????????##### | | ??????????????# """ """ #?????????????????????# | | ??????????????# """ """ #?????????????????????? | | ??????????????# """ """ #?????????????????????? | | ??????????????# #?????????????????????? | | ??????????????##############?????????????????????? | | | | | | | | | | | | | | | +----------------------------------------------------+ Best States ------------- Heat Dissipation 38 Energy Generation 10 Energy Capacity 250 Matter Stores 300 Matter Capacity 300 Sight Range 16 Robot Scan Range 10 Terrain Scan Density 10 Additional Mass Support 12 Evasion (%) 63 Recoil Reduction 3 Item Schematics ----------------- None Robot Schematics ------------------ None Fabricated ------------ Nothing Alien Tech Used ----------------- None Achievements -------------- Everything Is Under Control Challenges ------------ None Game ------ Seed PowerMinesnifferPropulsion Manual? 0 Play Time 00:25:35 Cumulative 5.7 hours Start 2021.11.26 @ 20:14:29 End 2021.11.26 @ 20:41:16 Sessions 1 Manual Loads 0 Difficulty Rogue Special Mode None Game No. 9 Rogue 9 Adventurer 0 Explorer 0 Win Type - Total 0 Types 0/0/0/0/0/0/0/0/0 Lore% 5 Gallery% 10 Achievement% 10 Wizard Run 0 Options --------- ASCII 0 Keyboard 0 Movement Mouse Keybinds 0 Fullscreen 2 Font 24/Smallcaps Map View 76x50 Tactical HUD 1 Map Filters NONE Filters NONE Steam 1 RUN: dc61a25c-41c8-4bf0-9217-eb4ff3dba774